Cogmind - Beta 15 @@@ ROGUE MODE // 2025.10.03 @ 18:40:53 Player: leek.801 Result: Destroyed by Y-45 Defender with Heavy Assault Rifle Performance ------------- Evolutions (2) 1000 Regions Visited (3) 600 Robots Destroyed (46) 230 Value Destroyed (1244) 1244 Prototype IDs (0) 0 Alien Tech Used (0) 0 Bonus (0) 0 TOTAL SCORE: 3074 Bonus ------- None Cogmind --------- Core Integrity 0/550 Matter 300/300 Energy 99/100 System Corruption 0% Temperature Cool (9) Movement Core (200) Ox3 Location -8/Materials Parts ------- > --- POWER (1) -------- (None) > --- PROPULSION (3) --- (None) > --- UTILITY (4) ------ Medium Storage Unit Visual Processing Unit > --- WEAPON (3) ------- (None) > --- INVENTORY (10) --- Heat Sink EM Pulse Cannon Grenade Launcher Flail Peak State ------------ > --- POWER ------------ Ion Engine > --- PROPULSION ------- Light Treads Light Treads Improved Treads > --- UTILITY ---------- Heat Sink Medium Storage Unit Large Matter Pod Visual Processing Unit > --- WEAPON ----------- EM Pulse Cannon Light Assault Rifle Heavy Assault Rifle > --- INVENTORY -------- Ion Engine Compact Wheel Heat Sink Beam Rifle Light Assault Rifle Heavy Assault Rifle Heavy Assault Rifle Grenade Launcher Flail [Rating: 17] Favorites ----------- Power Ion Engine Engine Ion Engine Power Core Light Nuclear Core Propulsion Light Treads Treads Light Treads Leg Aluminum Leg Wheel Wheel Utility Heat Sink Device Heat Sink Storage Medium Storage Unit Processor Visual Processing Unit Protection Light Armor Plating Weapon Heavy Assault Rifle Energy Gun Medium Laser Energy Cannon EM Pulse Cannon Ballistic Gun Heavy Assault Rifle Ballistic Cannon Light Cannon Launcher Grenade Launcher Impact Weapon Flail Build | -11 -10 -9 -8 ------- Run | Yrd Mat Mat Mat Slots Evolved 4 | . . 2 2 Power . | . . . . Propulsion 1 | . . . 1 Utility 2 | . . 2 . Weapon 1 | . . . 1 Parts Attached 39 | 6 13 10 10 Power 7 | 1 2 2 2 Engine 6 | 1 1 2 2 Core 1 | . 1 . . Reactor . | . . . . Propulsion 10 | 2 3 3 2 Treads 4 | . . 3 1 Leg 2 | 2 . . . Wheel 4 | . 3 . 1 Hover . | . . . . Flight . | . . . . Utility 7 | 1 4 2 . Device 1 | . 1 . . Storage 3 | 1 1 1 . Processor 1 | . . 1 . Hackware . | . . . . Protection 2 | . 2 . . Artifact . | . . . . Weapon 15 | 2 4 3 6 Energy Gun 4 | 2 1 . 1 Energy Cannon 1 | . . . 1 Ballistic Gun 7 | . 2 2 3 Ballistic Cannon 1 | . 1 . . Launcher 1 | . . 1 . Special Weapon . | . . . . Impact Weapon 1 | . . . 1 Slashing Weapon . | . . . . Piercing Weapon . | . . . . Special Melee Weapon . | . . . . Unidentified Prototypes . | . . . . Parts Lost 22 | . 3 4 15 Power 6 | . 1 2 3 Propulsion 7 | . 1 2 4 Utility 2 | . . . 2 Weapon 7 | . 1 . 6 Highest Loss Streak 8 | . 2 2 8 To Critical Strikes . | . . . . Average Backups 7 | 3 7 8 6 Power . | . 1 . . Propulsion 2 | 2 3 1 . Utility . | . . . 1 Weapon 3 | . 2 4 4 Tool/Special . | . . . . Unused Backups 3 | . 2 . 1 Power . | . . . . Propulsion . | . . . . Utility 2 | . 1 . 1 Weapon 1 | . 1 . . Tool/Special . | . . . . Average Slot Usage (%) 94 | . 97 97 81 Engine 6 | . 5 8 7 Core 4 | . 8 1 . Treads 8 | . . 17 14 Leg 3 | . 7 . . Wheel 10 | . 19 4 1 Device 10 | . 10 11 8 Storage 17 | . 14 21 17 Processor 5 | . . 11 9 Protection 1 | . 3 . . Energy Gun 9 | . 17 1 1 Ballistic Gun 10 | . 4 13 18 Ballistic Cannon 4 | . 5 6 . Peak Build Rating 17 | 6 10 13 17 Average Rating 10 | 5 8 12 12 On Entrance 7 | . 6 10 13 Naked Turns . | . . . . Heaviest Build 26 | 11 21 25 26 Greatest Support 63 | 20 26 40 63 Greatest Overweight (x) 6 | . 1 6 6 Average Overweight (x) . | . . . . Largest Inventory Capacity 10 | 8 10 10 10 Average Capacity 9 | 7 8 10 10 Most Carried 10 | 6 10 10 9 Average Carried 7 | 3 7 8 6 Final Capacity 10 | 8 10 10 10 Final Carried 10 | 6 10 10 4 Class Distribution -------------------- 55% | Scavenger-Mutant 37% | Mutant 6% | Scavenger-Skirmisher Dominant Class ---------------- Mutant | -10/Materials Scavenger-Mutant | -9/Materials Scavenger-Mutant | -8/Materials Resources | -11 -10 -9 -8 ----------- Run | Yrd Mat Mat Mat Matter Collected 1236 | 226 246 451 313 Remotely . | . . . . Salvage Created 1442 | . 478 489 475 Parts 85 | . 34 36 15 Haulers Intercepted 1 | . 1 . . Recyclers Shooed 1 | . . 1 . Parts Field Recycled . | . . . . Retrieved Matter . | . . . . Parts Self-Destructed . | . . . . Prevented . | . . . . Kills | -11 -10 -9 -8 ------- Run | Yrd Mat Mat Mat Combat Hostiles Destroyed 40 | . 14 17 9 Guns 31 | . 12 12 7 Cannons 5 | . 2 3 . AOE 4 | . . 2 2 Classes Destroyed 7 | . 5 1 1 Worker 1 | . 1 . . Hauler 1 | . 1 . . Recycler 1 | . . . 1 Watcher 3 | . 2 1 . Swarmer 14 | . 6 7 1 Grunt 23 | . 8 8 7 Sentry 3 | . . 2 1 Best Kill Streak 5 | . 5 4 4 Combat Bots Only 4 | . 4 4 4 Max Kills in Single Turn 1 | . 1 1 1 Gunslinging . | . . . . Exploded 1 | . . 1 1 Melee . | . . . . Uniques/NPCs Destroyed . | . . . . Combat | -11 -10 -9 -8 -------- Run | Yrd Mat Mat Mat Hostile Shots Fired 314 | . 91 83 140 Missed 76 | . 22 19 35 Hits 238 | . 69 64 105 Projectile 238 | . 69 64 105 Critical Strikes 8 | . 2 1 5 Damage Taken 2992 | . 693 614 1685 Core 870 | . 174 133 563 Absorbed by Shields . | . . . . Core Remaining (%) 65 | 100 30 66 . Volleys Fired 156 | . 62 45 49 Largest 3 | . 2 2 3 Hottest 106 | . 90 80 106 Shots Fired 305 | . 121 87 97 Gun 252 | . 104 59 89 Cannon 48 | . 17 25 6 Launcher 5 | . . 3 2 Special . | . . . . Kinetic 209 | . 46 80 83 Thermal 85 | . 75 4 6 Explosive 5 | . . 3 2 Electromagnetic 6 | . . . 6 Robot Hit Streak 16 | . 16 6 9 Robot Miss Streak 4 | . 4 3 4 Penetration Max . | . . . . Secondary Targets 4 | . 1 1 2 Max Gunslinging Chain 1 | . 1 1 1 Shots Hit Robots 198 | . 77 52 69 Core Hits 82 | . 33 23 26 Critical Kills . | . . . . Critical Parts Destroyed 1 | . . . 1 Critical Strikes 5 | . 4 . 1 Burn 4 | . 4 . . Destroy 1 | . . . 1 Melee Attacks . | . . . . Impact . | . . . . Slashing . | . . . . Piercing . | . . . . Sneak Attacks . | . . . . Combat Hostiles . | . . . . Follow-up Attacks . | . . . . Damage Inflicted 2956 | . 883 868 1205 Guns 2126 | . 706 557 863 Cannons 529 | . 176 220 133 Explosions 299 | . . 90 209 Melee . | . . . . Ramming 2 | . 1 1 . Kinetic 1946 | . 331 752 863 Thermal 653 | . 551 25 77 Explosive 222 | . . 90 132 Electromagnetic 133 | . . . 133 Impact . | . . . . Slashing . | . . . . Piercing . | . . . . Highest Corruption . | . . . . Average Corruption . | . . . . Corruption Purged . | . . . . Corruption Blocked . | . . . . Overload Shots . | . . . . Overflow Damage 34 | . . 15 19 Projectiles 34 | . . 15 19 Explosions . | . . . . Melee . | . . . . Knockbacks 6 | . 3 3 . Impact . | . . . . Kinetic 6 | . 3 3 . Secondary . | . . . . Self-Inflicted Damage 100 | . . . 100 Shots 3 | . . . 3 Rammed 2 | . . 2 . Targets Rammed 3 | . 1 2 . Kicked 1 | . 1 . . Crushed . | . . . . Highest Temperature 346 | . 346 9 79 Average Temperature 92 | . 106 9 31 Received Heat Transfer 1089 | . 222 147 720 Effects 3 | . 3 . . Interference 2 | . 2 . . Damage (minor) 1 | . 1 . . Siege Activations . | . . . . Martial Activations . | . . . . Shielding Activations . | . . . . Robots Disrupted . | . . . . Combat Hostiles . | . . . . Robots Corrupted . | . . . . Combat Hostiles . | . . . . Parts Fried . | . . . . Impact Corruptions . | . . . . Robots Melted . | . . . . Combat Hostiles . | . . . . Parts Melted 2 | . 2 . . Heat Transferred 1909 | . 1735 74 100 Parts Sabotaged . | . . . . Parts Stolen . | . . . . Parts Stripped . | . . . . Power Chain Reactions 1 | . . . 1 Alert | -11 -10 -9 -8 ------- Run | Yrd Mat Mat Mat Maximum Alert Level 1 | . . 1 . Low Security (%) 87 | 100 100 62 100 Level 1 12 | . . 37 . Level 2 . | . . . . Level 3 . | . . . . Level 4 . | . . . . Level 5 . | . . . . High Security . | . . . . Max Security . | . . . . Peak Influence 294 | . 144 294 173 Initial 103 | . . 42 103 Average 106 | . 79 163 104 Influence Increases 1290 | . 472 553 265 Destroy 0b10 Robot/C 800 | . 280 340 180 Destroy 0b10 Robot/NC 30 | . 20 5 5 Destroy Leader 188 | . 66 82 40 Successful Hack 72 | . 30 32 10 Destroy Structure 35 | . 1 19 15 Partial Spotted 15 | . 15 . . Lose Combat Pursuer 150 | . 60 75 15 Influence Decreases 1222 | . 369 410 443 Entered New Map 204 | . . 61 143 Time Decay 758 | . 339 269 150 Lost Part 210 | . 30 30 150 Purge Threat 50 | . . 50 . Squads Dispatched 9 | . 2 3 4 Investigation 4 | . 1 1 2 Extermination . | . . . . Reinforcement 4 | . 1 2 1 Assault . | . . . . Garrison 1 | . . . 1 Intercept . | . . . . Searches Triggered . | . . . . Construction Impeded 1 | . . . 1 Haulers Reinforced . | . . . . Active Scanning Responses . | . . . . Cargo Convoy Interrupts . | . . . . Stealth | -11 -10 -9 -8 --------- Run | Yrd Mat Mat Mat Distress Signals 7 | . 2 2 3 Communications Jammed . | . . . . Distress Signals . | . . . . Times Spotted 72 | . 25 29 18 Peak Tracking Total 6 | . 6 6 5 Tactical Retreats 8 | . 4 3 1 Traps | -11 -10 -9 -8 ------- Run | Yrd Mat Mat Mat Traps Triggered 1 | . 1 . . Indirectly . | . . . . Trap Hack Attempts . | . . . . Triggered . | . . . . Disarmed . | . . . . Reprogrammed . | . . . . Reused . | . . . . Traps Extracted . | . . . . Installed . | . . . . Triggered . | . . . . Machines | -11 -10 -9 -8 ---------- Run | Yrd Mat Mat Mat Machines Disabled . | . . . . Max in Single Turn . | . . . . Machines Repaired . | . . . . Machines Dismantled . | . . . . Machines Sabotaged . | . . . . Overloaded Fab Kills . | . . . . Hacking | -11 -10 -9 -8 --------- Run | Yrd Mat Mat Mat Machines Accessed 13 | . 5 6 2 Terminals 12 | . 4 6 2 Fabricators . | . . . . Repair Stations . | . . . . Recycling Units 1 | . 1 . . Scanalyzers . | . . . . Garrison Access . | . . . . Total Hacks 40 | . 16 15 9 Successful 26 | . 11 9 6 Failed 14 | . 5 6 3 Catastrophic 1 | . . . 1 Database Lockouts . | . . . . Manual 33 | . 11 14 8 Terminals 38 | . 14 15 9 Fabricators . | . . . . Repair Stations . | . . . . Recycling Units 2 | . 2 . . Scanalyzers . | . . . . Garrison Access . | . . . . Terminal Hacks 10 | . 3 5 2 Robot Analysis 1 | . 1 . . Level Access Points 1 | . . 1 . Branch Access Points 2 | . . 1 1 Terminal Index 2 | . 1 1 . Unreport Threat 1 | . . 1 . Zone Layout 3 | . 1 1 1 Fabricator Hacks . | . . . . Repair Station Hacks . | . . . . Recycling Unit Hacks 2 | . 2 . . Report Inventory 1 | . 1 . . Retrieve Components 1 | . 1 . . Scanalyzer . | . . . . Garrison Access Hacks . | . . . . Unauthorized Hacks 14 | . 6 4 4 Terminals 14 | . 6 4 4 Botnet 8 | . 4 2 2 Skim 6 | . 2 2 2 Fabricators . | . . . . Repair Stations . | . . . . Recycling Units . | . . . . Scanalyzers . | . . . . Garrison Access . | . . . . Data Cores Recovered . | . . . . Used . | . . . . Hacking Detections 9 | . 3 4 2 Full Trace Events 5 | . 2 1 2 Feedback Events . | . . . . Feedback Blocked . | . . . . Robot Schematics Acquired . | . . . . Robots Built . | . . . . Authchips . | . . . . Time . | . . . . Total Robot Build Rating . | . . . . Part Schematics Acquired . | . . . . Parts Built . | . . . . Authchips . | . . . . Time . | . . . . Total Part Build Rating . | . . . . Parts Repaired . | . . . . Time . | . . . . Parts Recycled . | . . . . Recycled Matter . | . . . . Retrieved Matter . | . . . . Retrieved Components 10 | . 10 . . Parts Scanalyzed . | . . . . Part Schematics Acquired . | . . . . Parts Damaged . | . . . . Bothacking | -11 -10 -9 -8 ------------ Run | Yrd Mat Mat Mat Used RIF Installer . | . . . . Robots Hacked . | . . . . Non-combat . | . . . . Combat . | . . . . Robot Hacks Applied . | . . . . Relay Couplers Released . | . . . . Fabnet Peak Effective % . | . . . . Robots Rewired . | . . . . Allies Hacked . | . . . . Hacks Repelled . | . . . . Allies | -11 -10 -9 -8 -------- Run | Yrd Mat Mat Mat Total Allies . | . . . . Largest Group . | . . . . Highest-Rated Group . | . . . . Highest-Rated Ally . | . . . . Total Orders . | . . . . Ally Attacks . | . . . . Total Damage . | . . . . Kills . | . . . . Allies Corrupted . | . . . . Allies Melted . | . . . . Intel | -11 -10 -9 -8 ------- Run | Yrd Mat Mat Mat Active Infowar (turns) 976 | . . 657 319 Optics 976 | . . 657 319 Robot Analysis Total 1 | . 1 . . Derelict Logs Recovered . | . . . . Drone Launches . | . . . . Drone Recoveries . | . . . . Exploration | -11 -10 -9 -8 ------------- Run | Yrd Mat Mat Mat Turns Passed 1956 | 114 866 657 319 Spaces Moved 1174 | 85 660 327 102 Core 16 | 5 . 1 10 Treads 297 | . . 231 66 Legs 209 | 80 129 . . Wheels 652 | . 531 95 26 Hover . | . . . . Flight . | . . . . Fastest Speed 50 | 50 80 90 115 Average Speed 113 | 115 92 140 157 Slowest Speed 350 | 120 120 350 350 Overloaded Moves . | . . . . Propulsion Burnouts . | . . . . Robots Hopped . | . . . . Potential Cave-ins . | . . . . Cave-ins Triggered . | . . . . Exploration Rate (%) 33 | 4 83 34 13 Regions Visited 3 Branch Regions . Pre-discovered Areas . | . . . . Known Exits Taken 1 | . . 1 . Unknown Exits Taken 2 | 1 1 . . Scrap Searched . | . . . . Spaces Dug . | . . . . Terrain Destroyed 40 | . . 26 14 Melee . | . . . . Projectile . | . . . . AOE 40 | . . 26 14 Terrain Rammed . | . . . . Walls Destroyed . | . . . . Machines Disabled . | . . . . Actions | -11 -10 -9 -8 --------- Run | Yrd Mat Mat Mat Total 1510 | 97 799 436 178 Wait 96 | 1 39 44 12 Move 1171 | 84 659 326 102 Hop . | . . . . Pick Up 24 | 6 12 5 1 Fast Attach 17 | 6 6 3 2 Attach 15 | . 3 5 7 Detach 1 | . 1 . . Swap 12 | . 5 3 4 Drop 15 | . 11 3 1 Fire 156 | . 62 45 49 Melee . | . . . . Ram 1 | . . 1 . Kick 1 | . 1 . . Crush 1 | . . 1 . Escape Stasis . | . . . . Rewire . | . . . . Trap . | . . . . Miscellaneous . | . . . . Route ------- -11/Scrapyard -10/Materials (discovered 4 exits: *Mat x3 / [*Sub]) -9/Materials (discovered 4 exits: *Mat x3 / *Min) -8/Materials (discovered 1 exit: Sto) History --------- Turn | Location | Event 2 | -11/Scrapyard | Met Revision 17 9 | -11/Scrapyard | Discovered new exit (range 15) 115 | -11/Scrapyard | Entered Materials 174 | -10/Materials | Discovered new exit (range 9) 291 | -10/Materials | Discovered new exit (range 15) 307 | -10/Materials | Build established: Mutant 601 | -10/Materials | Core integrity fell below 50% 691 | -10/Materials | Discovered new exit (range 15) 891 | -10/Materials | Discovered new exit (range 10) 981 | -10/Materials | Entered another Materials area 981 | -9/Materials | Evolved 2 slots: Utility x2 990 | -9/Materials | Identified exit to Mines 990 | -9/Materials | Identified exit to Materials 1166 | -9/Materials | Build established: Scavenger-Mutant 1638 | -9/Materials | Entered another Materials area 1638 | -8/Materials | Evolved 2 slots: Propulsion x1, Weapon x1 1719 | -8/Materials | Identified exit to Storage 1799 | -8/Materials | Garrison activated, responded to threat 1867 | -8/Materials | Lost 7 parts (1p3n3w) 1900 | -8/Materials | Core integrity fell below 50% 1948 | -8/Materials | Core integrity fell below 20% 1957 | -8/Materials | Destroyed by Y-45 Defender with Heavy Assault Rifle Last Messages --------------- 01917_ Destroyed Lgt. Treads. 01919_ Com. Wheel destroyed. 01922_ R-06 Scavenger collects Lgt. Nuclear Core. 01923_ R-06 Scavenger destroyed. 01923_ Penetrated by Slug. 01923_ Lgt. Assault Rifle destroyed. 01926_ R-06 Scavenger collects Recalibrator. 01927_ Hvy. Assault Rifle destroyed. 01927_ Heat Sink destroyed. 01931_ Penetrated by Slug. 01931_ R-06 Scavenger collects Com. Wheel. 01934_ R-06 Scavenger collects Imp. Heat Sink. 01937_ Penetrated by Slug. 01937_ Lrg. Matter Pod destroyed. 01940_ Lgt. Ion Engine destroyed. 01944_ Slug penetrates Terminal. 01944_ Terminal disabled. 01950_ Penetrated by Slug. 01953_ Beam Rifle destroyed. Map ----- +----------------------------------------------------+ | | | | | | | | | | | | | | | | | | | ?????????????????????????????????????????????????? | | ?????????????????????????????????????????????????? | | ?????????????????????????????????????????????????? | | ?????????????????????????????????????????????????? | | ??#################################??????????????? | | ??# ????????????? | | ??# ????????????? | | ??# ????????????? | | ??## ##########+#### #????????????????????? | | ???# #???????# ## #????????????????????? | | ???#! !#???????# "" ## #????????????????????? | | ???##!!!!##???????# T" ## #????????????????????? | | ????######????????# "" ## #????????????????????? | | ??????????????????# ## #????????????????????? | | ??????????????????#= ## #????????????????????? | | ??????????????????# ##h #????????????????????? | | ??????????????????# ##@ #????????????????????? | | ??????????????????# ]## #????????????????????? | | ??????????????????##+#### #????????????????????? | | ???????????????????# #??# #????????????????????? | | ???????????????????# #?## ##???????????????????? | | ???????????????????# #?# | #???????????????????? | | ???????????????????# #?# * # ????????????? | | ???????????????????# #?#%% # ????????????? | | ???????????????????# #?# # ????????????? | | ???????????????????# #?# # ????????????? | | ??????????????????##+#### ## ????????????? | | ??????????????????# # % #####+###????????????? | | ??????????????????# """ # #???# #??????????????? | | ??????????????????# """ # #???# #??????????????? | | ??????????????????# """ #Y #???# #??????????????? | | ??????????????????# # #???# #??????????????? | | ??????????######### """ # #??## ###????????????? | | ??????????# ## """ # #??# ????????????? | | ??????????# ## """ # #??# ????????????? | | ??????????# ## # #??# ????????????? | | ????????### ## # #??# ##????????????? | | ??????### # ## # #??# ##????????????? | | ?????? # ## ! # #??# # ????????????? | | ?????? #+##+##### # #### + ""??????????? | | ?????? # % # ????????????? | +----------------------------------------------------+ Best States ------------- Heat Dissipation 41 Energy Generation 14 Energy Capacity 250 Matter Stores 450 Matter Capacity 450 Sight Range 18 Terrain Scan Density 10 Armor Coverage 150 Evasion (%) 55 Recoil Reduction 3 Item Schematics ----------------- None Robot Schematics ------------------ None Fabricated ------------ Nothing Repaired ---------- Nothing Alien Tech Used ----------------- None Achievements -------------- None Challenges ------------ None Game ------ Seed MultireflexReactiveJammer Manual? 0 Play Time 00:49:36 Cumulative 109.5 hours Start 2025.10.03 @ 15:55:49 End 2025.10.03 @ 18:40:53 Sessions 5 Manual Loads 0 Difficulty Rogue Special Mode None Game No. 120 Rogue 120 Adventurer 0 Explorer 0 Win Type - Total 0 Types 0/0/0/0/0/0/0/0/0/0 Lore% 14 Gallery% 24 Achievement% 23 Wizard Run 0 Options --------- Layout 2 ASCII 0 Keyboard 0 Movement Numpad Keybinds 0 Fullscreen 1 Font 24/Smallcaps Map View 50x44 Zoom Use 0% Tactical HUD 1 Map Filters NONE Filters NONE Steam 1 RUN: 5575063f-6fc6-413b-bf8f-55dd8a8f6f00